bitfinex/quotes_ETHUSD_20240607
["timestamp","ask_amount","ask_price","bid_price","bid_amount"]
[1717777371594,0.714,3802.5,3802.2,2.66956262]
[1717777371996,0.714,3802.5,3802.2,3.20711756]
[1717777372201,0.56866616,3802.9,3802.3,2.2962]
[1717777372382,0.714,3803.1,3802.3,2.33565537]
[1717777372587,0.714,3802.9,3802.3,2.33565537]
[1717777372802,0.714,3802.9,3802.4,0.28732103]
[1717777372997,0.56866616,3803.3,3802.8,2.62962]
[1717777373198,0.56866616,3803.3,3802.8,4.90512]
[1717777373521,0.56866616,3803.3,3802.9,0.03917514]
[1717777373522,0.714,3803.3,3802.9,0.03917514]
[1717777374092,2.97426616,3803.6,3802.9,0.03917514]
[1717777374343,0.714,3803.2,3802.9,0.03917514]
[1717777374649,0.714,3803.2,3803.0,0.49442951]
[1717777374854,0.714,3803.2,3803.0,0.53356521]
[1717777375145,2.97426616,3803.6,3803.0,0.53356521]
[1717777375351,2.97426616,3803.6,3803.0,0.0391357]
[1717777375352,0.714,3803.3,3803.0,0.0391357]
[1717777375690,0.714,3803.3,3802.8,4.90512]
[1717777375946,0.714,3803.3,3803.1,0.03893993]
[1717777376092,0.714,3803.3,3802.8,4.90512]
[1717777376292,0.714,3803.3,3803.2,0.0389005]
[1717777376512,0.714,3803.3,3802.8,4.90512]
[1717777376718,0.714,3803.3,3802.8,5.395632]
[1717777376994,0.714,3803.2,3802.9,0.03901881]
[1717777377236,2.97410841,3803.6,3802.9,0.03901881]
[1717777377491,0.714,3803.2,3802.9,0.03901881]
[1717777377631,0.714,3803.2,3802.9,0.58248389]
[1717777378316,0.714,3803.3,3803.0,2.62949]
[1717777378744,0.714,3803.3,3803.1,0.03893993]
[1717777382474,0.714,3803.5,3803.1,0.03893993]
[1717777382901,2.62905,3803.7,3803.1,0.03893993]
[1717777383106,0.714,3803.6,3803.2,0.3211895]
[1717777383308,2.4678,3803.9,3803.2,0.36009]
[1717777383507,0.714,3803.7,3803.2,0.36009]
[1717777385006,2.4678,3803.9,3803.2,2.98942]
[1717777385203,0.714,3803.5,3803.2,2.98942]
[1717777387752,2.4678,3803.9,3803.2,2.98942]
[1717777388159,0.714,3803.6,3803.2,2.98942]
[1717777388459,0.714,3803.6,3803.3,0.298942]
[1717777388868,2.4678,3803.9,3803.4,0.03865737]
[1717777389173,0.714,3803.6,3803.4,0.03865737]
[1717777389388,2.4678,3803.9,3803.4,0.03865737]
[1717777389691,0.714,3803.7,3803.4,0.03865737]
[1717777392076,0.714,3803.5,3803.4,0.03865737]
[1717777392303,3.145,3803.5,3803.4,0.03865737]
[1717777392431,3.722412,3803.5,3803.4,0.03865737]
[1717777392636,2.6293,3803.3,3802.8,7.43]
[1717777392829,0.714,3802.9,3802.8,7.43]
[1717777395552,0.714,3802.9,3802.3,2.62993]
[1717777395748,0.714,3802.7,3802.0,12.52525]
[1717777395950,0.714,3802.5,3802.0,5.09525]
[1717777397270,0.714,3802.5,3801.8,5.4752]
[1717777397441,0.714,3802.5,3801.9,0.810556]
[1717777398041,0.714,3802.6,3801.9,3.440776]
[1717777398241,0.714,3802.6,3802.0,0.03423154]
[1717777399258,2.62953,3803.0,3802.3,2.62995]
[1717777399587,2.62953,3803.0,3802.4,0.580985]
[1717777399792,2.62953,3803.0,3802.4,0.61509429]
[1717777400862,2.62934,3803.3,3802.5,2.62983]
[1717777401088,2.62934,3803.3,3802.6,2.3713]
[1717777401449,2.62934,3803.3,3802.7,2.66365526]
[1717777402088,2.62909,3803.6,3802.9,2.62951]
[1717777402277,0.714,3803.5,3803.0,0.26634753]
[1717777402497,0.714,3803.5,3803.0,0.30009766]
[1717777403270,2.62909,3803.6,3803.0,0.30009766]
[1717777403465,0.714,3803.5,3803.0,0.30009766]
[1717777403682,3.34309,3803.6,3803.0,0.30009766]
[1717777403883,3.34309,3803.6,3803.1,0.29296077]
[1717777404089,2.62909,3803.6,3803.1,0.32667146]
[1717777404303,3.34309,3803.6,3803.1,0.32667146]
[1717777404813,0.714,3803.6,3803.1,0.32667146]
[1717777405891,0.714,3803.8,3803.1,2.95605146]
[1717777408699,0.714,3803.6,3803.1,2.95605146]
[1717777409300,0.714,3803.6,3803.1,2.66309069]
[1717777410365,0.714,3803.4,3803.1,0.03371069]
[1717777410764,0.714,3803.4,3802.8,2.6296]
[1717777410982,0.714,3803.4,3803.2,0.03367125]
[1717777411185,0.714,3803.4,3802.8,2.6296]
[1717777411390,0.714,3803.4,3803.3,0.03363182]
[1717777411564,0.714,3803.4,3802.6,7.43]
[1717777411565,3.34323,3803.4,3802.6,7.43]
[1717777411769,5.08433,3803.4,3803.3,0.03363182]
[1717777412007,5.79833,3803.4,3802.6,7.43]
[1717777412206,0.714,3803.2,3802.6,7.43]
[1717777412408,0.714,3803.2,3802.7,0.03286845]
[1717777416374,0.714,3803.2,3802.5,2.62981]
[1717777416687,3.34323,3803.4,3802.5,2.62981]
[1717777416885,3.34323,3803.4,3802.6,0.0329079]
[1717777417085,3.34323,3803.4,3802.6,0.60186969]
[1717777417288,3.34323,3803.4,3802.7,2.6297]
[1717777417538,3.34323,3803.4,3802.7,2.66269094]
[1717777419487,2.62923,3803.4,3802.7,2.66269094]
[1717777419819,0.714,3803.3,3802.7,2.66269094]
[1717777419985,0.714,3803.3,3802.8,0.32316527]
[1717777420182,0.714,3803.3,3802.7,2.66269094]
[1717777420512,0.714,3803.3,3802.8,0.03291989]
[1717777420692,0.714,3803.3,3802.7,2.6297]
[1717777421029,0.714,3803.3,3802.9,0.03288044]
[1717777421209,0.714,3803.3,3802.8,0.03291989]
[1717777421525,0.714,3803.3,3802.9,0.03288044]
[1717777421723,0.714,3803.3,3802.7,2.6297]
[1717777421932,0.714,3803.3,3803.0,0.032841]
[1717777422128,0.714,3803.3,3802.7,3.12396]
[1717777422304,0.714,3803.3,3803.1,0.03280157]
[1717777422502,0.714,3803.3,3802.7,3.12396]
[1717777423127,0.714,3803.3,3802.8,0.03291989]
[1717777423324,0.714,3802.9,3802.4,2.62986]
[1717777423528,0.714,3802.9,3802.5,1.242326]
[1717777428301,0.714,3802.9,3802.6,0.03300271]
[1717777428902,0.714,3803.1,3802.6,0.03300271]
[1717777429941,2.62935,3803.3,3802.6,2.66276271]
[1717777430140,0.714,3803.2,3802.8,2.2831]
[1717777430645,2.62935,3803.3,3802.9,0.03288438]
[1717777430944,0.714,3803.3,3802.9,0.03288438]
[1717777432002,0.714,3803.1,3802.9,0.03288438]
[1717777432346,0.714,3803.1,3802.9,0.5664957]
[1717777433539,0.714,3803.3,3802.9,0.5664957]
[1717777435407,0.714,3803.2,3802.9,0.5664957]
[1717777436749,0.56853981,3803.6,3802.9,0.5664957]
[1717777436928,0.714,3803.4,3802.9,0.5664957]
[1717777437246,0.714,3803.4,3803.0,3.21643246]
[1717777437448,0.714,3803.4,3803.1,0.03278377]
[1717777437682,0.714,3803.4,3803.2,2.62936]
[1717777437883,0.714,3803.4,3803.2,2.66210434]
[1717777439087,0.714,3803.4,3803.2,0.03274434]
[1717777439292,0.714,3803.4,3802.9,2.6295]
[1717777439480,0.714,3803.2,3802.9,2.6295]
[1717777440281,0.714,3803.2,3802.9,2.89245]
[1717777441177,0.714,3803.4,3802.9,2.89244152]
[1717777442375,0.714,3803.2,3802.9,2.89244152]
[1717777442953,0.714,3803.3,3802.9,2.89244152]
[1717777443191,0.714,3803.3,3803.0,0.03065811]
[1717777445850,0.714,3803.1,3803.0,0.03065811]
[1717777447080,0.714,3803.1,3802.6,2.62972]
[1717777447391,0.714,3803.1,3803.0,0.03000922]
[1717777447548,1.286215,3803.1,3802.6,2.62972]
[1717777447752,0.714,3802.9,3802.6,2.62972]
[1717777447952,0.572215,3803.1,3802.6,2.62972]
[1717777448253,0.714,3803.0,3802.6,2.62972]
[1717777450197,0.714,3803.0,3802.3,2.62995]
[1717777450490,0.714,3802.8,3802.3,2.62995]
[1717777451392,0.714,3802.6,3802.3,2.62995]
[1717777453699,0.714,3802.4,3802.3,2.62995]
[1717777454888,0.714,3802.4,3802.0,2.63014]
[1717777458134,0.714,3802.4,3802.1,0.0296003]
[1717777459807,3.34381,3802.6,3802.1,0.0296003]
[1717777461130,2.62981,3802.6,3802.1,0.0296003]
[1717777461337,0.714,3802.6,3802.1,0.0296003]
[1717777461534,2.3473,3802.7,3802.2,2.63004]
[1717777461867,3.0613,3802.7,3802.2,2.6597727]
[1717777462455,0.714,3802.8,3802.3,2.4518]
[1717777462760,0.714,3802.8,3802.4,0.02965379]
[1717777468897,2.62963,3802.9,3802.4,2.65955379]
[1717777469105,0.714,3802.9,3802.4,2.65955379]
[1717777469479,2.62942,3803.2,3802.4,2.65955379]
[1717777469675,2.62921,3803.5,3802.4,0.54078917]
[1717777469907,0.714,3803.1,3802.4,0.02965379]
[1717777470731,0.714,3803.2,3802.8,2.62962]
[1717777471190,0.714,3803.2,3802.9,0.02937358]
[1717777472923,0.56852223,3803.4,3802.9,0.02937358]
[1717777473077,0.714,3803.2,3802.9,0.02937358]
[1717777474623,0.56852264,3803.4,3802.9,0.02937358]
[1717777474827,0.714,3803.2,3802.9,0.02937358]
[1717777476309,5.11331,3803.5,3802.9,0.02937358]
[1717777476623,0.714,3803.2,3802.9,0.02937358]
[1717777476819,5.11331,3803.5,3802.9,0.54510294]
[1717777477017,0.714,3803.3,3802.9,0.54510294]
[1717777477220,2.62899,3803.8,3803.0,2.62949]
[1717777477589,2.62899,3803.8,3803.2,2.62935]
[1717777477790,0.714,3803.7,3803.2,2.62935]
[1717777478122,0.714,3803.7,3803.3,0.02907557]
[1717777479829,2.62899,3803.8,3803.3,0.02907557]
[1717777480025,0.714,3803.6,3803.3,0.02907557]
[1717777481986,2.62899,3803.8,3803.3,0.02907557]
[1717777482187,0.714,3803.7,3803.3,0.02907557]
[1717777484645,0.714,3803.7,3803.4,2.62921]
[1717777484993,0.5684732,3803.9,3803.5,0.02899671]
[1717777485226,0.714,3803.6,3803.5,0.02899671]
[1717777485436,2.3524,3804.0,3803.5,0.02899671]
[1717777485599,0.714,3803.6,3803.5,0.02899671]
[1717777496570,0.714,3803.7,3803.5,0.02899671]
[1717777499640,3.1973679,3803.9,3803.5,0.02899671]
[1717777499840,0.714,3803.7,3803.5,0.02899671]
[1717777502722,0.714,3803.7,3803.5,2.0305463]
[1717777508284,0.714,3803.6,3803.5,2.0305463]
[1717777511485,2.62889,3803.9,3803.5,2.0305463]
[1717777511682,3.34289,3803.9,3803.5,2.0305463]
[1717777511870,2.62889,3803.9,3803.5,2.0305463]
[1717777512182,0.714,3804.0,3803.5,4.6596963]
[1717777512386,0.714,3804.0,3803.5,5.36525593]
[1717777512678,0.714,3803.9,3803.5,5.36525593]
[1717777513989,0.714,3803.8,3803.5,5.36525593]
[1717777514485,0.5684779,3804.1,3803.5,5.36525593]
[1717777514652,0.714,3803.9,3803.5,5.36525593]
[1717777514849,0.714,3803.9,3803.6,0.77611559]
[1717777515196,0.714,3803.9,3803.7,0.02797963]
[1717777518152,2.62873,3804.2,3803.7,2.65696963]
[1717777518153,0.714,3804.0,3803.7,2.65696963]
[1717777518550,0.56840718,3804.3,3804.0,2.62879]
[1717777518749,2.62851,3804.5,3804.0,2.62879]
[1717777518750,0.714,3804.4,3804.0,2.62879]
[1717777518955,0.714,3804.4,3804.1,0.02767974]
[1717777520165,0.714,3804.4,3804.1,0.02767974]
[1717777520885,0.714,3804.2,3804.1,0.02767974]
[1717777523081,2.3344,3804.4,3804.1,0.02767974]
[1717777523262,0.714,3804.2,3804.1,0.02767974]
[1717777525381,0.56839276,3804.4,3804.1,0.02767974]
[1717777525576,0.714,3804.3,3804.1,0.02767974]
[1717777527830,3.19690276,3804.5,3804.1,0.02767974]
[1717777527973,3.34251,3804.5,3804.1,0.02767974]
[1717777528366,1.28239276,3804.5,3804.1,0.02767974]
[1717777528566,2.4796,3804.6,3804.1,0.02767974]
[1717777529010,0.714,3804.5,3804.1,0.02767974]
[1717777529995,1.28239276,3804.5,3804.1,0.02767974]
[1717777531099,1.28238503,3804.5,3804.1,0.02767974]
[1717777531479,1.28238495,3804.5,3804.1,0.02767974]
[1717777531908,0.714,3804.3,3804.1,0.02767974]
[1717777537913,1.28238495,3804.5,3804.1,0.02767974]
[1717777539312,0.56838495,3804.5,3804.1,0.02767974]
[1717777539515,0.714,3804.5,3804.1,0.02767974]
[1717777540014,0.56838495,3804.7,3804.2,2.62866]
[1717777540218,0.56838495,3804.7,3804.2,2.65610484]
[1717777540382,1.28238495,3804.7,3804.2,2.65610484]
[1717777540583,0.714,3804.7,3804.2,2.65610484]
[1717777542722,0.714,3804.7,3804.4,2.62853]
[1717777543016,0.56838495,3804.9,3804.6,2.62839]
[1717777543546,10.0,3805.0,3804.9,5.03998]
[1717777543828,10.0,3805.0,3804.9,5.64244039]
[1717777548097,10.0,3805.0,3804.9,3.23064039]
[1717777548297,10.0,3805.0,3804.9,3.18064039]
[1717777548714,10.0,3805.0,3804.9,2.60524239]
[1717777552518,10.0,3805.0,3804.1,0.714]
[1717777552718,10.0,3805.0,3804.9,0.0258682]
[1717777552719,17.99972,3805.0,3804.9,0.0258682]
[1717777552894,2.62855,3804.4,3804.2,7.43]
[1717777553293,2.62855,3804.4,3804.3,0.02823739]
[1717777553519,3.34255,3804.4,3804.3,0.02823739]
[1717777553727,3.34255,3804.4,3804.2,7.43]
[1717777554105,3.34255,3804.4,3804.3,0.02823739]
[1717777554303,5.71415,3804.4,3804.3,0.02823739]
[1717777554609,5.71415,3804.4,3804.2,7.43]
[1717777554804,0.56842977,3804.3,3804.2,7.43]
[1717777555492,1.28242977,3804.3,3804.2,7.43]
[1717777556733,2.62869,3804.2,3803.5,4.65185504]
[1717777556891,2.62869,3804.2,3803.6,0.02855578]
[1717777559834,3.34269,3804.2,3803.6,0.02855578]
[1717777562334,2.62869,3804.2,3803.6,2.65760578]
[1717777562712,0.56841974,3804.3,3803.6,2.65760578]
[1717777562914,3.65401974,3804.4,3803.6,3.19492132]
[1717777563331,1.28241974,3804.4,3803.8,2.62888]
[1717777563507,0.56841974,3804.4,3803.6,0.56587132]
[1717777563719,3.1801,3804.5,3804.0,2.62877]
[1717777563720,0.714,3804.3,3804.0,2.62877]
[1717777564100,0.714,3804.3,3804.1,0.02671304]
[1717777564803,2.4661,3804.5,3804.1,0.02671304]
[1717777565099,0.714,3804.3,3804.1,0.02671304]
[1717777567324,5.12229,3804.8,3804.2,2.62867]
[1717777567525,0.714,3804.5,3804.2,2.62867]
[1717777567862,0.714,3804.5,3804.3,0.02662858]
[1717777569548,0.714,3804.5,3804.3,0.00062858]
[1717777569856,0.714,3804.5,3804.3,0.03255577]
[1717777573833,0.714,3804.6,3804.3,0.03255577]
[1717777575723,2.62829,3804.8,3804.3,0.03255577]
[1717777575952,0.714,3804.6,3804.3,0.03255577]
[1717777576260,0.714,3804.6,3804.3,0.29867835]
[1717777577344,0.714,3804.6,3804.3,0.03255577]
[1717777579536,0.714,3804.5,3804.3,0.03255577]
[1717777580165,0.714,3804.6,3804.3,0.03255577]
[1717777580874,3.34241,3804.6,3804.3,0.03255577]
[1717777581071,3.34253,3804.4,3803.7,7.43]
[1717777581279,0.714,3804.1,3803.7,7.43]
[1717777582444,2.2587,3804.3,3803.7,7.43]
[1717777582658,3.34268,3804.2,3803.7,7.43]
[1717777583065,3.34268,3804.2,3803.5,4.63064959]
[1717777584190,0.714,3803.9,3803.5,4.63064959]
[1717777584677,0.714,3803.7,3803.5,4.63064959]
[1717777587783,0.714,3803.7,3803.5,2.00154959]
[1717777587937,3.1845,3803.7,3803.5,2.00154959]
[1717777590170,3.75284203,3803.7,3803.5,2.00154959]
[1717777590352,2.4705,3803.7,3803.5,2.00154959]
[1717777590683,0.714,3803.6,3803.5,2.00154959]
[1717777591266,3.34308,3803.6,3803.5,2.00154959]
[1717777591469,3.91142203,3803.6,3803.5,2.00154959]
[1717777592950,3.19742203,3803.6,3803.5,2.00154959]
[1717777593152,3.91142203,3803.6,3803.5,2.00154959]
[1717777593584,4.57431923,3803.6,3803.5,2.00154959]
[1717777594383,3.19742203,3803.6,3803.5,2.00154959]
[1717777594567,3.34308,3803.6,3803.5,2.00154959]
[1717777594762,3.91142203,3803.6,3803.5,2.00154959]
[1717777595188,3.34308,3803.6,3803.5,2.00154959]
[1717777596986,2.62908,3803.6,3803.5,2.00154959]
[1717777597190,3.34308,3803.6,3803.5,2.00154959]
[1717777598578,3.9115791,3803.6,3803.5,2.00154959]
[1717777599002,3.1975791,3803.6,3803.5,2.00154959]
[1717777599207,3.34308,3803.6,3803.5,2.00154959]
[1717777599821,3.9115791,3803.6,3803.5,2.00154959]
[1717777601082,3.1975791,3803.6,3803.5,2.00154959]
[1717777601310,3.34308,3803.6,3803.5,2.00154959]
[1717777601505,3.1975791,3803.6,3803.5,2.00154959]
[1717777601711,3.9115791,3803.6,3803.5,2.00154959]
[1717777602031,3.34308,3803.6,3803.5,2.00154959]
[1717777603227,2.62908,3803.6,3803.5,2.00154959]
[1717777603525,3.34308,3803.6,3803.5,2.00154959]
[1717777605509,5.75698,3803.6,3803.5,2.00154959]
[1717777606284,6.90119126,3803.6,3803.5,2.00154959]
[1717777608326,6.32549326,3803.6,3803.5,2.00154959]
[1717777610633,6.32550377,3803.6,3803.5,2.00154959]
[1717777613854,6.32556186,3803.6,3803.5,2.00154959]
[1717777614716,3.91166186,3803.6,3803.5,2.00154959]
[1717777615015,5.76078,3803.6,3803.5,2.00154959]
[1717777615240,7.22518905,3803.6,3803.5,2.00154959]
[1717777618088,6.65660719,3803.6,3803.5,2.00154959]
[1717777618221,7.22519083,3803.6,3803.5,2.00154959]
[1717777635150,6.65660719,3803.6,3803.5,2.00154959]
[1717777635345,7.22522857,3803.6,3803.5,2.00154959]
[1717777638309,3.19770411,3803.6,3803.5,2.00154959]
[1717777638819,2.62908,3803.6,3803.5,2.00154959]
[1717777638964,3.34308,3803.6,3803.5,4.42534959]
[1717777639169,0.714,3803.7,3803.5,4.42534959]
[1717777640201,0.56862411,3804.0,3803.5,4.86788455]
[1717777640409,0.714,3804.3,3803.5,4.86788455]
[1717777640602,0.714,3804.3,3803.6,2.62908]
[1717777641278,0.714,3804.1,3803.6,2.62908]
[1717777641474,0.714,3804.1,3803.7,0.74969646]
[1717777642500,0.714,3804.1,3803.8,2.62893]
[1717777642805,0.714,3804.2,3803.8,2.62893]
[1717777651319,2.62844,3804.6,3803.8,2.62893]
[1717777651498,0.714,3804.4,3804.0,2.62879]
[1717777656433,2.62823,3804.9,3804.2,2.62865]
[1717777656754,0.714,3804.6,3804.3,2.4367]
[1717777656958,0.714,3804.6,3804.4,0.506535]
[1717777658556,0.714,3804.5,3804.4,0.506535]
[1717777661655,10.0,3805.0,3804.5,2.62846]
[1717777662257,10.714,3805.0,3804.5,2.62846]
[1717777666255,0.714,3804.8,3804.5,2.62846]
[1717777666422,0.714,3804.8,3804.6,0.5571695]
[1717777668049,10.0,3805.0,3804.6,0.5571695]
[1717777668490,10.714,3805.0,3804.6,0.5571695]
[1717777668667,10.0,3805.0,3804.7,2.62832]
[1717777669489,10.0,3805.0,3804.8,2.4689]
[1717777669645,10.0,3805.0,3804.8,3.03433895]
[1717777672776,10.0,3805.0,3804.9,2.62818]
[1717777673196,10.0,3805.0,3804.9,4.90798]
[1717777682187,10.0,3805.0,3804.9,5.62198]
[1717777687909,10.0,3805.0,3804.9,4.90798]
[1717777688132,10.0,3805.0,3804.9,5.45532189]
[1717777694844,10.0,3805.0,3804.9,8.08350189]
[1717777695037,10.0,3805.0,3804.9,11.08350189]
[1717777696202,10.0,3805.0,3804.9,13.71168189]
[1717777698703,10.0,3805.0,3804.9,14.42568189]
[1717777700536,10.0,3805.0,3804.9,11.79750189]
[1717777702440,10.0,3805.0,3804.9,11.08350189]
[1717777702610,10.0,3805.0,3804.9,11.79750189]
[1717777702808,10.0,3805.0,3804.9,11.08350189]
[1717777703132,10.0,3805.0,3804.9,11.79750189]
[1717777705431,10.0,3805.0,3804.9,11.08350189]
[1717777705638,10.0,3805.0,3804.9,9.51770189]
[1717777710441,10.0,3805.0,3804.9,12.14588189]
[1717777710643,10.0,3805.0,3804.9,14.59788189]
[1717777711730,10.0,3805.0,3804.9,14.59788189]
[1717777712076,10.0,3805.0,3804.9,11.96970189]
[1717777712382,10.0,3805.0,3804.9,14.59788189]
[1717777712741,10.0,3805.0,3804.9,11.96970189]
[1717777713074,10.0,3805.0,3804.9,14.59788189]
[1717777713242,10.0,3805.0,3804.9,11.96970189]
[1717777713580,10.0,3805.0,3804.9,14.59788189]
[1717777713955,10.0,3805.0,3804.9,11.96970189]
[1717777715458,10.0,3805.0,3804.9,13.88388189]
[1717777715676,10.0,3805.0,3804.9,14.59788189]
[1717777715855,10.0,3805.0,3804.9,11.96970189]
[1717777716849,10.0,3805.0,3804.9,14.59788189]
[1717777720462,10.0,3805.0,3804.9,15.42765662]
[1717777721781,10.0,3805.0,3804.9,14.59788189]
[1717777722173,9.09000001,3805.0,3804.9,15.41986424]
[1717777722377,9.09000001,3805.0,3804.9,14.59788189]
[1717777723356,9.09000001,3805.0,3804.9,15.7042482]
[1717777724387,9.09000001,3805.0,3804.9,14.59788189]
[1717777724994,8.84000001,3805.0,3804.9,14.59788189]
[1717777725296,8.84000001,3805.0,3804.9,13.88388189]
[1717777725495,8.84000001,3805.0,3804.9,14.59788189]
[1717777725988,8.84000001,3805.0,3804.9,15.41967926]
[1717777726193,8.84000001,3805.0,3804.9,14.59788189]
[1717777727860,8.84000001,3805.0,3804.9,15.41967926]
[1717777729001,8.84000001,3805.0,3804.9,14.59788189]
[1717777729675,8.84000001,3805.0,3804.9,15.41967926]
[1717777731390,8.84000001,3805.0,3804.9,14.59788189]
[1717777732763,8.50000001,3805.0,3804.9,14.59788189]
[1717777734598,8.24000001,3805.0,3804.9,14.59788189]
[1717777735685,7.59000001,3805.0,3804.9,14.59788189]
[1717777736288,1e-08,3805.0,3804.9,17.22606189]
[1717777736780,1e-08,3805.0,3804.9,18.04745146]
[1717777737393,1e-08,3805.0,3804.9,14.59788189]
[1717777737816,1e-08,3805.0,3804.9,15.7042482]
[1717777738405,1e-08,3805.0,3804.9,15.41930829]
[1717777741320,1e-08,3805.0,3804.9,17.22606189]
[1717777741520,1e-08,3805.0,3804.9,21.0973975]
[1717777741680,0.1262591,3805.8,3805.7,7.88289]
[1717777742003,0.1262591,3805.8,3805.7,12.622299]
[1717777742407,0.1262591,3805.8,3805.7,11.908299]
[1717777742580,0.1262591,3805.8,3805.7,12.622299]
[1717777744572,0.1262591,3805.8,3805.7,9.280669]
[1717777745203,0.1262591,3805.8,3805.7,9.994669]
[1717777746906,0.1262591,3805.8,3805.7,9.280669]
[1717777747105,0.1262591,3805.8,3805.7,9.994669]
[1717777748602,2.4509591,3805.8,3805.7,2.62763]
[1717777751841,2.4509591,3805.8,3805.4,2.6278]
[1717777751999,2.4509591,3805.8,3805.5,3.0]
[1717777753143,3.044,3805.7,3805.1,2.62801]
[1717777753303,2.33,3805.6,3805.1,2.62801]
[1717777754158,0.714,3805.5,3805.1,2.62801]
[1717777754376,2.2986,3805.4,3805.1,2.62801]
[1717777756701,2.2986,3805.4,3804.8,5.62825]
[1717777757205,0.714,3805.3,3804.8,5.62825]
[1717777757408,2.4321,3805.2,3804.8,5.62825]
[1717777758291,2.4321,3805.2,3804.8,2.62825]
[1717777758482,0.714,3804.9,3804.4,5.62852]
[1717777758664,2.4389,3804.8,3804.4,5.62852]
[1717777765195,2.4389,3804.8,3804.4,2.62852]
[1717777765385,2.3118,3804.6,3804.4,2.62852]
[1717777767290,2.3118,3804.6,3804.1,2.6287]
[1717777767478,2.3457,3804.4,3804.2,3.0]
[1717777772308,2.3457,3804.4,3804.3,2.6286]
[1717777780640,2.3341,3804.8,3804.5,2.62843]
[1717777784581,2.2535,3805.4,3804.8,2.62819]
[1717777784781,0.714,3805.1,3804.8,2.62819]
[1717777790522,2.3978,3805.0,3804.8,2.62819]
[1717777794630,2.3978,3805.0,3804.8,2.62819]
[1717777794934,2.4203,3805.3,3805.0,2.62808]
[1717777796005,3.1343,3805.3,3805.0,2.62808]
[1717777801833,2.4203,3805.3,3805.0,2.62808]
[1717777802037,0.56820076,3805.5,3804.4,7.43]
[1717777802038,0.1262591,3805.8,3805.5,2.62777]
[1717777802208,0.1262591,3805.8,3805.6,0.262777]
[1717777802410,0.1262591,3805.8,3805.7,0.714]
[1717777802719,0.1262591,3805.8,3805.6,0.262777]
[1717777803235,0.1262591,3805.8,3805.6,2.890477]
[1717777805349,0.1262591,3805.8,3805.7,0.8690967]
[1717777808874,0.1262591,3805.8,3805.7,3.8690967]
[1717777811079,0.1262591,3805.8,3805.7,6.2010967]
[1717777811491,0.1262591,3805.8,3805.7,6.9150967]
[1717777811988,0.1262591,3805.8,3805.7,6.2010967]
[1717777812301,0.1262591,3805.8,3805.7,6.9150967]
[1717777813148,0.1262591,3805.8,3805.7,6.2010967]
[1717777813606,0.1262591,3805.8,3805.7,6.9150967]
[1717777820284,0.1262591,3805.8,3805.7,6.2010967]
[1717777820485,0.1262591,3805.8,3805.7,6.9150967]
[1717777821143,0.1262591,3805.8,3805.7,6.2010967]
[1717777821430,0.1262591,3805.8,3805.7,6.9150967]
[1717777823601,9.1e-06,3805.8,3805.7,9.5427267]
[1717777824018,9.1e-06,3805.8,3805.7,17.4256167]
[1717777825502,9.1e-06,3805.8,3805.7,25.5743197]
[1717777827441,9.1e-06,3805.8,3805.7,25.2907027]
[1717777829708,9.1e-06,3805.8,3805.7,24.5767027]
[1717777830042,9.1e-06,3805.8,3805.7,25.2907027]
[1717777830241,9.1e-06,3805.8,3805.7,22.6630727]
[1717777830542,9.1e-06,3805.8,3805.7,18.6563007]
[1717777830853,9.1e-06,3805.8,3805.7,17.9805917]
[1717777831511,9.1e-06,3805.8,3805.7,20.6082217]
[1717777832010,9.1e-06,3805.8,3805.7,17.4256167]
[1717777832440,9.1e-06,3805.8,3805.7,26.0109827]
[1717777833459,9.1e-06,3805.8,3805.7,18.4565917]
[1717777833624,9.1e-06,3805.8,3805.7,17.7425917]
[1717777834051,9.1e-06,3805.8,3805.7,18.4565917]
[1717777835752,9.1e-06,3805.8,3805.7,17.7425917]
[1717777836056,9.1e-06,3805.8,3805.7,18.4565917]
[1717777837442,9.1e-06,3805.8,3805.7,16.1245917]
[1717777837952,9.1e-06,3805.8,3805.7,18.7522217]
[1717777838714,9.1e-06,3805.8,3805.7,15.4105917]
[1717777838913,9.1e-06,3805.8,3805.7,18.7522217]
[1717777839355,9.1e-06,3805.8,3805.7,18.0382217]
[1717777839553,9.1e-06,3805.8,3805.7,16.1245917]
[1717777839732,9.1e-06,3805.8,3805.7,18.7522217]
[1717777840666,9.1e-06,3805.8,3805.7,13.1245917]
[1717777840866,9.1e-06,3805.8,3805.7,2.62763]
[1717777841256,2.3203091,3805.8,3805.7,2.62763]
[1717777842861,2.3203091,3805.8,3805.7,5.62763]
[1717777843471,2.4336,3806.3,3806.0,2.62743]
[1717777844553,2.4336,3806.3,3806.1,3.0]
[1717777845651,2.4336,3806.3,3806.2,2.62729]
[1717777846232,0.56791046,3807.5,3806.4,2.62714]
[1717777846233,2.4336,3806.9,3806.4,2.62714]
[1717777846464,2.4336,3806.9,3806.5,3.0]
[1717777847233,2.4336,3806.9,3806.8,2.62687]
[1717777856081,0.5678644,3807.8,3806.9,2.274]
[1717777856261,2.2958,3808.2,3808.1,2.62598]
[1717777856462,2.2958,3808.2,3808.1,3.33998]
[1717777856683,2.2958,3808.2,3808.1,2.62598]
[1717777862187,2.275,3808.6,3808.4,2.62576]
[1717777867273,2.275,3808.6,3808.1,2.62594]
[1717777867991,2.62533,3809.1,3808.1,2.62594]
[1717777868207,2.4312,3809.0,3808.1,2.62594]
[1717777869712,2.4312,3809.0,3808.3,2.62581]
[1717777870676,2.4312,3809.0,3808.5,2.62567]
[1717777878143,0.711,3808.7,3808.5,2.62567]
[1717777881505,2.4312,3809.0,3808.5,2.62567]
[1717777881704,0.711,3808.7,3808.5,2.62567]
[1717777883315,0.711,3808.7,3808.2,2.62585]
[1717777883641,2.3839,3808.6,3808.2,2.62585]
[1717777885429,0.711,3808.5,3808.2,2.62585]
[1717777887349,0.711,3808.5,3807.9,10.05608]